Cogmind - Beta 16.1 @@@ ROGUE MODE // 2026.06.22 @ 14:25:54 Player: Kathisto Result: Destroyed by as-00230 with Assembled Heavy Rifle Performance ------------- Evolutions (0) 0 Regions Visited (4) 800 Robots Destroyed (30) 150 Value Destroyed (695) 695 Prototype IDs (0) 0 Alien Tech Used (0) 0 Bonus (0) 0 TOTAL SCORE: 1645 Bonus ------- None Cogmind --------- Core Integrity 0/250 Matter 269/300 Energy 100/100 System Corruption 3% Temperature Cool (0) Movement Core (50) Location -9/Mines Parts ------- > --- POWER (1) -------- (None) > --- PROPULSION (2) --- (None) > --- UTILITY (2) ------ (None) > --- WEAPON (2) ------- (None) > --- INVENTORY (5) ---- Ion Engine Aluminum Leg Medium Matter Pod (100) Light Assault Rifle Light Assault Rifle Peak State ------------ > --- POWER ------------ Light Nuclear Core > --- PROPULSION ------- Aluminum Leg Aluminum Leg > --- UTILITY ---------- Medium Storage Unit Seismic Detector > --- WEAPON ----------- Assault Rifle Light Assault Rifle > --- INVENTORY -------- Ion Engine Light Ion Engine Aluminum Leg Aluminum Leg Aluminum Leg Aluminum Leg Large Storage Unit Medium Matter Pod EM Pulse Gun Grenade Launcher [Rating: 10] Favorites ----------- Power Light Nuclear Core Engine Ion Engine Power Core Light Nuclear Core Propulsion Aluminum Leg Leg Aluminum Leg Utility Seismic Detector Device Seismic Detector Storage Medium Storage Unit Weapon Light Assault Rifle Ballistic Gun Light Assault Rifle Launcher Grenade Launcher Build | -11 -10 -10 -10 -9 ------- Run | Yrd Mat Min Exi Min Slots Evolved . | . . . . . Power . | . . . . . Propulsion . | . . . . . Utility . | . . . . . Weapon . | . . . . . Parts Attached 26 | 7 10 9 . . Power 3 | 1 1 1 . . Engine 1 | 1 . . . . Core 2 | . 1 1 . . Reactor . | . . . . . Propulsion 11 | 2 4 5 . . Treads . | . . . . . Leg 11 | 2 4 5 . . Wheel . | . . . . . Hover . | . . . . . Flight . | . . . . . Utility 5 | 2 2 1 . . Device 2 | 1 1 . . . Storage 3 | 1 1 1 . . Processor . | . . . . . Hackware . | . . . . . Protection . | . . . . . Artifact . | . . . . . Weapon 7 | 2 3 2 . . Energy Gun . | . . . . . Energy Cannon . | . . . . . Ballistic Gun 6 | 2 3 1 . . Ballistic Cannon . | . . . . . Launcher 1 | . . 1 . . Special Weapon . | . . . . . Impact Weapon . | . . . . . Slashing Weapon . | . . . . . Piercing Weapon . | . . . . . Special Melee Weapon . | . . . . . Unidentified Prototypes . | . . . . . Parts Lost 7 | . 2 . . 5 Power . | . . . . . Propulsion 2 | . . . . 2 Utility 2 | . 1 . . 1 Weapon 3 | . 1 . . 2 Highest Loss Streak 5 | . 2 . . 5 To Critical Strikes . | . . . . . Average Backups 9 | 1 8 10 10 11 Power 1 | . 1 2 2 2 Propulsion 2 | . 2 2 2 2 Utility 1 | . 1 2 2 3 Weapon 3 | . 3 4 4 4 Tool/Special . | . . . . . Unused Backups 12 | . 3 1 . 8 Power 1 | . . . . 1 Propulsion 3 | . 1 1 . 1 Utility 3 | . . . . 3 Weapon 5 | . 2 . . 3 Tool/Special . | . . . . . Average Slot Usage (%) 98 | . 97 100 100 95 Engine 2 | . 4 . . . Core 11 | . 9 14 14 14 Leg 28 | . 28 28 28 28 Device 12 | . 11 14 14 9 Storage 14 | . 14 14 14 14 Ballistic Gun 27 | . 28 27 28 23 Peak Build Rating 10 | 7 10 10 10 10 Average Rating 9 | 5 8 10 10 8 On Entrance 7 | . 7 10 10 10 Avg Prop Armor Cover (%) . | . . . . . Naked Turns 3 | . . . . 3 Heaviest Build 29 | 14 19 28 28 29 Greatest Support 20 | 20 20 20 20 20 Greatest Overweight (x) 2 | 2 . 1 1 1 Average Overweight (x) . | . . . 1 . Largest Inventory Capacity 15 | 8 10 15 15 15 Average Capacity 11 | 6 9 12 15 13 Most Carried 11 | 2 10 11 11 11 Average Carried 9 | 1 8 10 10 10 Final Capacity 15 | 8 10 15 15 5 Final Carried 11 | 2 10 10 11 5 Class Distribution -------------------- 52% | Scavenger-Mutant 47% | Mutant Dominant Class ---------------- Mutant | -10/Materials Scavenger-Mutant | -10/Mines Scavenger-Mutant | -10/Exiles Scavenger-Mutant | -9/Mines Resources | -11 -10 -10 -10 -9 ----------- Run | Yrd Mat Min Exi Min Matter Collected 969 | 314 451 202 . 2 Remotely . | . . . . . Salvage Created 982 | 157 514 236 . 75 Parts 71 | 15 32 22 . 2 Haulers Intercepted 2 | . 2 . . . Recyclers Shooed 1 | 1 . . . . Parts Field Recycled . | . . . . . Retrieved Matter . | . . . . . Parts Self-Destructed . | . . . . . Prevented . | . . . . . Parts Restored . | . . . . . Kills | -11 -10 -10 -10 -9 ------- Run | Yrd Mat Min Exi Min Combat Hostiles Destroyed 29 | . 11 8 . 10 Guns 16 | . 11 5 . . AOE 13 | . . 3 . 10 Classes Destroyed 7 | 2 4 . . 1 Tunneler 5 | 4 . 1 . . Hauler 2 | . 2 . . . Recycler 1 | 1 . . . . Watcher 2 | . 2 . . . Swarmer 6 | . 3 3 . . Grunt 14 | . 8 5 . 1 Assembled 9 | . . . . 9 Best Kill Streak 10 | 3 3 3 . 10 Combat Bots Only 10 | . 3 3 . 10 Max Kills in Single Turn 4 | 1 1 3 . 4 Gunslinging . | . . . . . Exploded 4 | . . 3 . 4 Melee . | . . . . . Uniques/NPCs Destroyed . | . . . . . Combat | -11 -10 -10 -10 -9 -------- Run | Yrd Mat Min Exi Min Hostile Shots Fired 137 | . 56 26 . 55 Missed 31 | . 9 5 . 17 Hits 106 | . 47 21 . 38 Melee 4 | . . . . 4 Projectile 102 | . 47 21 . 34 Critical Strikes 1 | . . . . 1 Damage Taken 1379 | . 507 284 . 588 Core 264 | . 79 24 . 161 Absorbed by Shields . | . . . . . Core Remaining (%) 100 | 100 . . . . Volleys Fired 108 | 11 66 23 . 8 Largest 2 | 2 2 2 . 2 Hottest 40 | 40 40 40 . 40 Shots Fired 211 | 22 132 45 . 12 Gun 206 | 22 132 44 . 8 Cannon . | . . . . . Launcher 5 | . . 1 . 4 Special . | . . . . . Kinetic 206 | 22 132 44 . 8 Thermal . | . . . . . Explosive 5 | . . 1 . 4 Electromagnetic . | . . . . . Robot Hit Streak 8 | 6 8 8 . 6 Robot Miss Streak 6 | 2 6 1 . 1 Penetration Max . | . . . . . Secondary Targets 1 | . 1 . . . Max Gunslinging Chain 1 | . 1 . . . Shots Hit Robots 118 | 12 69 30 . 7 Core Hits 75 | 7 30 16 . 22 Critical Kills . | . . . . . Critical Parts Destroyed . | . . . . . Critical Strikes . | . . . . . Melee Attacks . | . . . . . Impact . | . . . . . Slashing . | . . . . . Piercing . | . . . . . Sneak Attacks . | . . . . . Combat Hostiles . | . . . . . Follow-up Attacks . | . . . . . Damage Inflicted 1836 | 131 747 442 . 516 Guns 1230 | 131 744 314 . 41 Cannons . | . . . . . Explosions 594 | . . 119 . 475 Melee . | . . . . . Ramming 12 | . 3 9 . . Kinetic 1230 | 131 744 314 . 41 Thermal . | . . . . . Explosive 594 | . . 119 . 475 Electromagnetic . | . . . . . Impact . | . . . . . Slashing . | . . . . . Piercing . | . . . . . Highest Corruption 3 | . . . . 3 Average Corruption 2 | . . . . 2 Corruption Purged . | . . . . . Corruption Blocked . | . . . . . Effects 1 | . . . . 1 Data Loss (major) 1 | . . . . 1 Overload Shots . | . . . . . Overflow Damage 77 | . . 26 . 51 Projectiles . | . . . . . Explosions 77 | . . 26 . 51 Melee . | . . . . . Knockbacks . | . . . . . Impact . | . . . . . Kinetic . | . . . . . Secondary . | . . . . . Self-Inflicted Damage 39 | . . . . 39 Shots 1 | . . . . 1 Rammed . | . . . . . Targets Rammed 5 | . 4 1 . . Kicked 5 | . 4 1 . . Crushed . | . . . . . Highest Temperature 70 | . 18 45 . 70 Average Temperature 11 | . 5 14 . 30 Received Heat Transfer 555 | . 192 162 . 201 Siege Activations . | . . . . . Martial Activations . | . . . . . Shielding Activations . | . . . . . Robots Disrupted . | . . . . . Combat Hostiles . | . . . . . Robots Corrupted . | . . . . . Combat Hostiles . | . . . . . Parts Fried . | . . . . . Impact Corruptions . | . . . . . Robots Melted . | . . . . . Combat Hostiles . | . . . . . Parts Melted . | . . . . . Heat Transferred . | . . . . . Parts Sabotaged . | . . . . . Parts Stolen . | . . . . . Parts Stripped . | . . . . . Power Chain Reactions . | . . . . . Alert | -11 -10 -10 -10 -9 ------- Run | Yrd Mat Min Exi Min Maximum Alert Level . | . . . . . Low Security (%) 100 | 100 100 100 . 100 Level 1 . | . . . . . Level 2 . | . . . . . Level 3 . | . . . . . Level 4 . | . . . . . Level 5 . | . . . . . High Security . | . . . . . Max Security . | . . . . . Peak Influence 113 | 15 113 83 . 24 Initial . | . . . . . Average 23 | 3 28 18 . 5 Influence Increases 638 | 25 350 223 . 40 Destroy 0b10 Robot/C 400 | . 220 160 . 20 Destroy 0b10 Robot/NC 50 | 25 20 5 . . Destroy Leader 88 | . 58 30 . . Successful Hack 20 | . 20 . . . Disable Machine 45 | . 30 15 . . Destroy Structure 35 | . 2 13 . 20 Influence Decreases 614 | 25 350 223 . 16 Time Decay 583 | 25 331 223 . 4 Lost Part 31 | . 19 . . 12 Squads Dispatched 2 | . 2 . . . Investigation 1 | . 1 . . . Extermination . | . . . . . Reinforcement 1 | . 1 . . . Assault . | . . . . . Garrison . | . . . . . Intercept . | . . . . . Searches Triggered . | . . . . . Construction Impeded . | . . . . . Haulers Reinforced . | . . . . . Active Scanning Responses . | . . . . . Cargo Convoy Interrupts . | . . . . . Stealth | -11 -10 -10 -10 -9 --------- Run | Yrd Mat Min Exi Min Distress Signals 2 | . 2 . . . Communications Jammed . | . . . . . Distress Signals . | . . . . . Times Spotted 45 | . 18 5 . 22 Peak Tracking Total 21 | . 4 2 . 21 Tactical Retreats . | . . . . . Traps | -11 -10 -10 -10 -9 ------- Run | Yrd Mat Min Exi Min Traps Triggered 1 | . 1 . . . Indirectly . | . . . . . Trap Hack Attempts . | . . . . . Triggered . | . . . . . Disarmed . | . . . . . Reprogrammed . | . . . . . Reused . | . . . . . Traps Extracted . | . . . . . Installed . | . . . . . Triggered . | . . . . . Machines | -11 -10 -10 -10 -9 ---------- Run | Yrd Mat Min Exi Min Machines Disabled 3 | . 2 1 . . Max in Single Turn 1 | . 1 1 . . Machines Repaired . | . . . . . Machines Dismantled . | . . . . . Machines Sabotaged . | . . . . . Overloaded Fab Kills . | . . . . . Hacking | -11 -10 -10 -10 -9 --------- Run | Yrd Mat Min Exi Min Machines Accessed 6 | . 5 . 1 . Terminals 5 | . 5 . . . Fabricators . | . . . . . Repair Stations . | . . . . . Recycling Units . | . . . . . Scanalyzers . | . . . . . Garrison Access . | . . . . . Total Hacks 9 | . 8 . 1 . Successful 8 | . 7 . 1 . Failed 1 | . 1 . . . Catastrophic . | . . . . . Database Lockouts . | . . . . . Manual 8 | . 8 . . . Terminals 8 | . 8 . . . Fabricators . | . . . . . Repair Stations . | . . . . . Recycling Units . | . . . . . Scanalyzers . | . . . . . Garrison Access . | . . . . . Terminal Hacks 1 | . . . 1 . Record 1 | . . . 1 . Fabricator Hacks . | . . . . . Repair Station Hacks . | . . . . . Recycling Unit Hacks . | . . . . . Scanalyzer . | . . . . . Garrison Access Hacks . | . . . . . Unauthorized Hacks 7 | . 7 . . . Terminals 7 | . 7 . . . Botnet 2 | . 2 . . . Skim 5 | . 5 . . . Fabricators . | . . . . . Repair Stations . | . . . . . Recycling Units . | . . . . . Scanalyzers . | . . . . . Garrison Access . | . . . . . Data Cores Recovered . | . . . . . Used . | . . . . . Hacking Detections 3 | . 3 . . . Full Trace Events . | . . . . . Feedback Events . | . . . . . Feedback Blocked . | . . . . . Robot Schematics Acquired . | . . . . . Robots Built . | . . . . . Authchips . | . . . . . Time . | . . . . . Total Robot Build Rating . | . . . . . Part Schematics Acquired . | . . . . . Parts Built . | . . . . . Authchips . | . . . . . Time . | . . . . . Total Part Build Rating . | . . . . . Part Studies Acquired . | . . . . . Parts Repaired . | . . . . . Time . | . . . . . Parts Recycled . | . . . . . Recycled Matter . | . . . . . Retrieved Matter . | . . . . . Retrieved Components . | . . . . . Parts Scanalyzed . | . . . . . Part Schematics Acquired . | . . . . . Parts Damaged . | . . . . . Bothacking | -11 -10 -10 -10 -9 ------------ Run | Yrd Mat Min Exi Min Used RIF Installer . | . . . . . Robots Hacked . | . . . . . Non-combat . | . . . . . Combat . | . . . . . Robot Hacks Applied . | . . . . . Relay Couplers Released . | . . . . . Fabnet Peak Effective % . | . . . . . Robots Rewired . | . . . . . Allies Hacked . | . . . . . Hacks Repelled . | . . . . . Allies | -11 -10 -10 -10 -9 -------- Run | Yrd Mat Min Exi Min Total Allies . | . . . . . Largest Group . | . . . . . Highest-Rated Group . | . . . . . Highest-Rated Ally . | . . . . . Total Orders . | . . . . . Ally Attacks . | . . . . . Total Damage . | . . . . . Kills . | . . . . . Allies Corrupted . | . . . . . Allies Melted . | . . . . . Intel | -11 -10 -10 -10 -9 ------- Run | Yrd Mat Min Exi Min Active Infowar (turns) 2384 | 30 1147 903 285 19 Seismic 2384 | 30 1147 903 285 19 Robot Analysis Total . | . . . . . Derelict Logs Recovered 2 | . . 2 . . Drone Launches . | . . . . . Drone Recoveries . | . . . . . Exploration | -11 -10 -10 -10 -9 ------------- Run | Yrd Mat Min Exi Min Turns Passed 2708 | 121 1370 903 285 29 Spaces Moved 1278 | 71 502 547 150 8 Core 20 | 15 . . . 5 Treads . | . . . . . Legs 1258 | 56 502 547 150 3 Wheels . | . . . . . Hover . | . . . . . Flight . | . . . . . Fastest Speed 50 | 50 120 120 190 50 Average Speed 139 | 110 120 148 190 102 Slowest Speed 190 | 150 120 190 190 190 Overloaded Moves . | . . . . . Propulsion Burnouts . | . . . . . Robots Hopped . | . . . . . Potential Cave-ins . | . . . . . Cave-ins Triggered . | . . . . . Exploration Rate (%) 51 | 3 97 98 50 9 Regions Visited 4 Branch Regions 3 Pre-discovered Areas 2 | . . 1 1 . Known Exits Taken 1 | . 1 . . . Unknown Exits Taken 3 | 1 . 1 1 . Scrap Searched 1 | . . 1 . . Spaces Dug 30 | . . 13 . 17 Terrain Destroyed 39 | . . 13 . 26 Melee . | . . . . . Projectile . | . . . . . AOE 39 | . . 13 . 26 Terrain Rammed . | . . . . . Walls Destroyed . | . . . . . Machines Disabled . | . . . . . Actions | -11 -10 -10 -10 -9 --------- Run | Yrd Mat Min Exi Min Total 2008 | 90 1154 597 150 17 Wait 557 | . 549 8 . . Move 1274 | 70 501 546 149 8 Hop . | . . . . . Pick Up 16 | 2 12 1 1 . Fast Attach 8 | 7 1 . . . Attach 1 | . 1 . . . Detach . | . . . . . Swap 20 | . 9 10 . 1 Drop 19 | . 11 8 . . Fire 108 | 11 66 23 . 8 Melee . | . . . . . Ram . | . . . . . Kick 5 | . 4 1 . . Crush . | . . . . . Escape Stasis . | . . . . . Rewire . | . . . . . Trap . | . . . . . Miscellaneous . | . . . . . Route ------- -11/Scrapyard -10/Materials (discovered 6 exits: *Mat x3 / *Min x2 / Sub) -10/Mines (discovered 4 exits: *Mat x2 / *Exi / *Sub) -10/Exiles -9/Mines (discovered 2 exits: Mat x2) History --------- Turn | Location | Event 4 | -11/Scrapyard | Discovered new exit (range 15) 122 | -11/Scrapyard | Entered Materials 123 | -10/Materials | Met a group of wandering Federalists 306 | -10/Materials | Build established: Mutant 411 | -10/Materials | Discovered new exit (range 8) 584 | -10/Materials | Discovered new exit (range 13) 647 | -10/Materials | Discovered new exit (range 5) 842 | -10/Materials | Discovered new exit (range 11) 902 | -10/Materials | Discovered new exit (range 14) 1148 | -10/Materials | Identified exit to Subcaves 1252 | -10/Materials | Learned 2 Storage zone layouts 1398 | -10/Materials | Learned location of 1 exit from Recycling 1467 | -10/Materials | Identified exit to Materials 1467 | -10/Materials | Identified exit to Mines 1492 | -10/Materials | Entered Mines 1512 | -10/Mines | Met a Derelict bent on vengeance 1624 | -10/Mines | Learned location of Storage (-9) 1833 | -10/Mines | Build established: Scavenger-Mutant 1893 | -10/Mines | Learned location of 1 exit from Materials 2381 | -10/Mines | Discovered exit to Subcaves (range 11) 2385 | -10/Mines | Deemed a non-threat by the Exiles lab entrance 2387 | -10/Mines | Discovered new exit (range 5) 2395 | -10/Mines | Entered Exiles 2441 | -10/Exiles | Met 8R-AWN 2471 | -10/Exiles | Met EX-HEX 2547 | -10/Exiles | Met EX-DEC 2557 | -10/Exiles | Learned location of Zion (-6) 2655 | -10/Exiles | Discovered new exit (range 14) 2680 | -10/Exiles | Entered Mines 2681 | -9/Mines | Assembled infested the area 2681 | -9/Mines | Identified exit to Materials 2683 | -9/Mines | Core integrity fell below 50% 2686 | -9/Mines | Assisted by a Guerilla fighting off Assembled 2704 | -9/Mines | Core integrity fell below 20% 2706 | -9/Mines | Released all parts (2) 2709 | -9/Mines | Destroyed by as-00230 with Assembled Heavy Rifle Last Messages --------------- 02704_ Aluminum Leg destroyed. 02704_ System corrupted by crushing effect (+2). 02704_ Grenade Launcher destroyed. 02704_ Destroyed Grenade Launcher. 02704_ as-38773 destroyed. 02704_ G-34 Mercenary destroyed. 02704_ as-95252 destroyed. 02704_ as-59148 destroyed. 02705_ HV Slug penetrates G-47 Trooper. 02705_ G-47 Trooper suffers critical hit (Destroy). 02705_ G-47 Trooper destroyed. 02705_ HV Slug penetrates Earth. 02706_ Released Lrg. Storage Unit. 02706_ Released Lgt. Nuclear Core. 02707_ System corrupted: Substantial component data lost. 02707_ HV Slug penetrates as-58077. 02707_ as-58077 suffers critical hit (Destroy). 02707_ as-58077 destroyed. Map ----- +----------------------------------------------------+ | ?????????????????????????????????????????? | | ?????????????????????????????????????????? | | ?????????????????????????????????????????? | | ?????????????????????????????????????????? | | ?????????????????????????????????????????? | | ?????????????????????????????????????????? | | ?????????????????????????????????????????? | | ?????????????????????????????????????????? | | ?????????????????????????????????????????? | | ?????????????????????????????????????????? | | ?????????????????????????????????????????? | | ?????????????????????????????????????????? | | ???????????????????????????#?????????????? | | ??????????????????????????# ?????????????? | | ?????????????????????????# ??????????????? | | ?????????????????????####%???????????????? | | ?????????????????????# [%##??????????????? | | ????????????????????## *% #??????????????? | | ????????????????????#" ! #??????????????? | | ??????????????????###% %%#?#????????????? | | ?????????????????## =## #?? ##???????? | | ?????????????????# !*[ # "##??????? | | ??????????????????#[!! a #??????? | | ??????????????????# =*% a %aa a #??????? | | ??# #### ### a %% #?????? | | ???????""" @ ?????? | | ???????""" #### #### % ?????? | | ???????????????????# ## ??????? | | ???????????????????# #### ##?????????? | | ???????????????????# ###????##??????????? | | ???????????????????# #??????????????????? | | ???????????????????# #??????????????????? | | ???????????????????# #??????????????????? | | ???????????????????# #??????????????????? | | ???????????????????? #??????????????????? | | ???????????????????? #??????????????????? | | ???????????????????? #??????????????????? | | ???????????????????? ???????????????????? | | ???????????????????? ???????????????????? | | ???????????????????? ???????????????????? | | ?????????????????????????????????????????? | | ?????????????????????????????????????????? | | ?????????????????????????????????????????? | | ?????????????????????????????????????????? | | ?????????????????????????????????????????? | | ?????????????????????????????????????????? | | ?????????????????????????????????????????? | | ?????????????????????????????????????????? | | ?????????????????????????????????????????? | | ?????????????????????????????????????????? | +----------------------------------------------------+ Best States ------------- Heat Dissipation 25 Energy Generation 14 Energy Capacity 250 Matter Stores 300 Matter Capacity 300 Sight Range 16 Terrain Scan Density 10 Evasion (%) 55 Item Schematics ----------------- None Robot Schematics ------------------ None Fabricated ------------ Nothing Repaired ---------- Nothing Studied --------- None Alien Tech Used ----------------- None Achievements -------------- None Challenges ------------ None Game ------ Seed RocketMatterShield Manual? 0 Play Time 00:09:53 Cumulative 184.6 hours Start 2026.06.22 @ 14:16:40 End 2026.06.22 @ 14:25:54 Sessions 1 Manual Loads 0 Difficulty Rogue Special Mode None Game No. 98 Rogue 98 Adventurer 0 Explorer 0 Win Type - Total 20 Types 10/1/5/1/0/1/1/1/0/0 Lore% 65 Gallery% 59 Achievement% 63 Wizard Run 0 Options --------- Layout 1 ASCII 0 Keyboard 0 Movement Arrows Keybinds 0 Fullscreen 1 Font 24/Tamsyn Map View 50x35 Zoom Use 0% Tactical HUD 1 Map Filters NONE Filters NONE Steam 1 RUN: 6885a13c-72c6-41aa-93b2-bd58407c95ca